fUSD/lending_fUSD_20250823
["ID","MTS","AMOUNT","RATE_DAILY","PERIOD"]
[380953767,1755912711084,-235.36934844,0.00015068,2]
[380953768,1755912711093,-476.9,0.00015068,2]
[380953769,1755912711102,-577.94,0.00015068,2]
[380953770,1755912711112,-400.0,0.00015068,2]
[380953771,1755912711121,-484.43,0.00015068,2]
[380953772,1755912711131,-400.0,0.00015068,2]
[380953773,1755912711140,-637.7,0.00015068,2]
[380953774,1755912711150,-423.83,0.00015068,2]
[380953775,1755912711159,-400.0,0.00015068,2]
[380953776,1755912711169,-459.29,0.00015068,2]
[380953777,1755912711178,-873.47,0.00015068,2]
[380953778,1755912711188,-571.62,0.00015068,2]
[380953779,1755912711197,-409.95,0.00015068,2]
[380953780,1755912711207,-400.0,0.00015068,2]
[380953781,1755912711217,-1704.41,0.00015068,2]
[380953782,1755912711226,-549.98,0.00015068,2]
[380953783,1755912711235,-400.0,0.00015068,2]
[380953784,1755912711245,-400.0,0.00015068,2]
[380953785,1755912711254,-400.0,0.00015068,2]
[380953786,1755912711263,-400.0,0.00015068,2]
[380953787,1755912711273,-531.47,0.00015068,2]
[380953788,1755912711282,-456.18,0.00015068,2]
[380953789,1755912711291,-400.0,0.00015068,2]
[380953790,1755912711301,-400.0,0.00015068,2]
[380953791,1755912711310,-400.0,0.00015068,2]
[380953792,1755912711319,-890.29,0.00015068,2]
[380953793,1755912711329,-406.1,0.00015068,2]
[380953794,1755912711338,-400.0,0.00015068,2]
[380953795,1755912711348,-400.0,0.00015068,2]
[380953796,1755912711358,-400.0,0.00015068,2]
[380953797,1755912711370,-400.0,0.00015068,2]
[380953798,1755912711379,-421.32,0.00015068,2]
[380953799,1755912711388,-400.0,0.00015068,2]
[380953800,1755912711398,-478.43,0.00015068,2]
[380953801,1755912711407,-400.0,0.00015068,2]
[380953802,1755912711417,-487.04,0.00015068,2]
[380953803,1755912711426,-595.85,0.00015068,2]
[380953804,1755912711435,-400.0,0.00015068,2]
[380953805,1755912711445,-542.43,0.00015068,2]
[380953806,1755912711454,-510.81,0.00015068,2]
[380953807,1755912711464,-451.04,0.00015068,2]
[380953808,1755912711473,-400.0,0.00015068,2]
[380953809,1755912711483,-477.02,0.00015068,2]
[380953810,1755912711492,-667.8,0.00015068,2]
[380953811,1755912711502,-400.0,0.00015068,2]
[380953812,1755912711511,-400.0,0.00015068,2]
[380953813,1755912711520,-754.76,0.00015068,2]
[380953814,1755912711530,-400.0,0.00015068,2]
[380953815,1755912711539,-1030.1,0.00015068,2]
[380953816,1755912711549,-510.89,0.00015068,2]
[380953817,1755912711558,-400.0,0.00015068,2]
[380953818,1755912711568,-436.99,0.00015068,2]
[380953819,1755912711577,-657.25,0.00015068,2]
[380953820,1755912711587,-400.0,0.00015068,2]
[380953821,1755912711596,-400.0,0.00015068,2]
[380953822,1755912711606,-400.0,0.00015068,2]
[380953823,1755912711616,-417.45,0.00015068,2]
[380953824,1755912711625,-400.0,0.00015068,2]
[380953825,1755912711635,-400.0,0.00015068,2]
[380953826,1755912711644,-1067.81,0.00015068,2]
[380953827,1755912711654,-400.0,0.00015068,2]
[380953828,1755912711663,-400.0,0.00015068,2]
[380953829,1755912711673,-400.0,0.00015068,2]
[380953830,1755912711683,-578.42,0.00015068,2]
[380953831,1755912711694,-786.01,0.00015068,2]
[380953832,1755912711706,-400.0,0.00015068,2]
[380953833,1755912711717,-1145.67,0.00015068,2]
[380953834,1755912711727,-624.95,0.00015068,2]
[380953835,1755912711737,-400.0,0.00015068,2]
[380953836,1755912711747,-400.0,0.00015068,2]
[380953837,1755912711756,-439.98,0.00015068,2]
[380953838,1755912711766,-400.0,0.00015068,2]
[380953839,1755912711777,-734.24,0.00015068,2]
[380953840,1755912711787,-400.0,0.00015068,2]
[380953841,1755912711796,-716.27,0.00015068,2]
[380953842,1755912711806,-400.0,0.00015068,2]
[380953843,1755912711816,-400.0,0.00015068,2]
[380953844,1755912711825,-677.21,0.00015068,2]
[380953845,1755912711835,-400.0,0.00015068,2]
[380953846,1755912711844,-400.0,0.00015068,2]
[380953847,1755912711854,-400.0,0.00015068,2]
[380953848,1755912711863,-503.77,0.00015068,2]
[380953849,1755912711873,-400.0,0.00015068,2]
[380953850,1755912711882,-831.56,0.00015068,2]
[380953851,1755912711892,-651.98,0.00015068,2]
[380953852,1755912711902,-742.35,0.00015068,2]
[380953853,1755912711911,-541.87,0.00015068,2]
[380953854,1755912711921,-400.0,0.00015068,2]
[380953855,1755912711930,-400.0,0.00015068,2]
[380953856,1755912711939,-462.17,0.00015068,2]
[380953857,1755912711952,-400.0,0.00015068,2]
[380953858,1755912711961,-422.39,0.00015068,2]
[380953859,1755912711974,-400.0,0.00015068,2]
[380953860,1755912711983,-400.0,0.00015068,2]
[380953861,1755912711993,-535.7,0.00015068,2]
[380953862,1755912712002,-400.0,0.00015068,2]
[380953863,1755912712011,-601.7,0.00015068,2]
[380953864,1755912712021,-598.88,0.00015068,2]
[380953865,1755912712030,-400.0,0.00015068,2]
[380953866,1755912712040,-729.0,0.00015068,2]
[380953867,1755912712050,-400.0,0.00015068,2]
[380953868,1755912712059,-560.98,0.00015068,2]
[380953869,1755912712069,-400.0,0.00015068,2]
[380953870,1755912712079,-482.06,0.00015068,2]
[380953871,1755912712088,-648.16,0.00015068,2]
[380953872,1755912712098,-400.0,0.00015068,2]
[380953873,1755912712108,-485.12,0.00015068,2]
[380953874,1755912712118,-581.45,0.00015068,2]
[380953875,1755912712127,-400.0,0.00015068,2]
[380953876,1755912712137,-463.13,0.00015068,2]
[380953877,1755912712147,-607.66,0.00015068,2]
[380953878,1755912712157,-400.0,0.00015068,2]
[380953879,1755912712167,-400.0,0.00015068,2]
[380953880,1755912712176,-483.72,0.00015068,2]
[380953881,1755912712186,-506.32,0.00015068,2]
[380953882,1755912712196,-657.0,0.00015068,2]
[380953883,1755912712211,-460.21,0.00015068,2]
[380953884,1755912712222,-664.59,0.00015068,2]
[380953885,1755912712232,-400.0,0.00015068,2]
[380953886,1755912712242,-518.18,0.00015068,2]
[380953887,1755912712252,-548.04,0.00015068,2]
[380953888,1755912712263,-400.0,0.00015068,2]
[380953889,1755912712273,-538.71,0.00015068,2]
[380953890,1755912712283,-623.23,0.00015068,2]
[380953891,1755912712294,-490.94,0.00015068,2]
[380953892,1755912712304,-400.0,0.00015068,2]
[380953893,1755912712314,-407.86,0.00015068,2]
[380953894,1755912712324,-492.11,0.00015068,2]
[380953895,1755912712334,-585.32,0.00015068,2]
[380953896,1755912712344,-704.8,0.00015068,2]
[380953897,1755912712354,-400.0,0.00015068,2]
[380953898,1755912712364,-419.51,0.00015068,2]
[380953899,1755912712378,-536.25,0.00015068,2]
[380953900,1755912712387,-400.0,0.00015068,2]
[380953901,1755912712397,-416.08,0.00015068,2]
[380953902,1755912712406,-400.0,0.00015068,2]
[380953903,1755912712417,-400.0,0.00015068,2]
[380953904,1755912712427,-552.15,0.00015068,2]
[380953905,1755912712437,-685.75,0.00015068,2]
[380953906,1755912712447,-400.0,0.00015068,2]
[380953907,1755912712460,-400.0,0.00015068,2]
[380953908,1755912712470,-1265.94,0.00015068,2]
[380953909,1755912712480,-475.58,0.00015068,2]
[380953910,1755912712489,-400.0,0.00015068,2]
[380953911,1755912712499,-400.0,0.00015068,2]
[380953912,1755912712509,-433.85,0.00015068,2]
[380953913,1755912712518,-400.0,0.00015068,2]
[380953914,1755912712528,-400.0,0.00015068,2]
[380953915,1755912712537,-400.0,0.00015068,2]
[380953916,1755912712547,-400.0,0.00015068,2]
[380953917,1755912712556,-400.0,0.00015068,2]
[380953918,1755912712566,-400.0,0.00015068,2]
[380953919,1755912712575,-428.36,0.00015068,2]
[380953920,1755912712584,-543.91,0.00015068,2]
[380953921,1755912712594,-427.61,0.00015068,2]
[380953922,1755912712604,-1000.0,0.00015068,2]
[380953923,1755912712614,-400.0,0.00015068,2]
[380953924,1755912712624,-400.0,0.00015068,2]
[380953925,1755912712634,-400.0,0.00015068,2]
[380953926,1755912712644,-763.66,0.00015068,2]
[380953927,1755912712654,-400.0,0.00015068,2]
[380953928,1755912712664,-400.0,0.00015068,2]
[380953929,1755912712674,-400.0,0.00015068,2]
[380953930,1755912712683,-482.08,0.00015068,2]
[380953931,1755912712693,-552.38,0.00015068,2]
[380953932,1755912712705,-400.0,0.00015068,2]
[380953933,1755912712714,-793.95,0.00015068,2]
[380953934,1755912712724,-400.0,0.00015068,2]
[380953935,1755912712734,-400.0,0.00015068,2]
[380953936,1755912712744,-400.0,0.00015068,2]
[380953937,1755912712754,-476.99,0.00015068,2]
[380953938,1755912712764,-400.0,0.00015068,2]
[380953939,1755912712773,-400.0,0.00015068,2]
[380953940,1755912712783,-400.0,0.00015068,2]
[380953941,1755912712793,-328.01,0.00015068,2]
[380953942,1755912712803,-151.0,0.00015068,2]
[380953943,1755912712813,-400.0,0.00015068,2]
[380953944,1755912712823,-772.08,0.00015068,2]
[380953945,1755912712832,-607.86,0.00015068,2]
[380953946,1755912712842,-400.0,0.00015068,2]
[380953947,1755912712851,-577.68,0.00015068,2]
[380953948,1755912712861,-446.17,0.00015068,2]
[380953949,1755912712870,-499.75,0.00015068,2]
[380953950,1755912712880,-543.86,0.00015068,2]
[380953951,1755912712889,-707.33,0.00015068,2]
[380953952,1755912712899,-752.86,0.00015068,2]
[380953953,1755912712909,-156.17461,0.00015068,2]
[380953954,1755912712919,-475.34,0.00015068,2]
[380953955,1755912712928,-151.0,0.00015068,2]
[380953956,1755912712938,-602.1,0.00015068,2]
[380953957,1755912712948,-400.0,0.00015068,2]
[380953958,1755912712958,-496.62,0.00015068,2]
[380953959,1755912712968,-480.32,0.00015068,2]
[380953960,1755912712978,-400.0,0.00015068,2]
[380953961,1755912712988,-400.0,0.00015068,2]
[380953962,1755912712997,-400.0,0.00015068,2]
[380953963,1755912713007,-400.0,0.00015068,2]
[380953964,1755912713017,-633.62,0.00015068,2]
[380953965,1755912713027,-400.0,0.00015068,2]
[380953966,1755912713037,-400.0,0.00015068,2]
[380953967,1755912713049,-400.0,0.00015068,2]
[380953968,1755912713059,-400.0,0.00015068,2]
[380953969,1755912713068,-400.0,0.00015068,2]
[380953970,1755912713078,-560.58,0.00015068,2]
[380953971,1755912713088,-614.22,0.00015068,2]
[380953972,1755912713097,-400.0,0.00015068,2]
[380953973,1755912713107,-428.79,0.00015068,2]
[380953974,1755912713117,-416.01,0.00015068,2]
[380953975,1755912713127,-400.0,0.00015068,2]
[380953976,1755912713136,-400.0,0.00015068,2]
[380953977,1755912713146,-425.3,0.00015068,2]
[380953978,1755912713156,-400.0,0.00015068,2]
[380953979,1755912713166,-400.0,0.00015068,2]
[380953980,1755912713176,-508.68,0.00015068,2]
[380953981,1755912713185,-535.36,0.00015068,2]
[380953982,1755912713196,-400.0,0.00015068,2]
[380953983,1755912713208,-193.17723,0.00015068,2]
[380953984,1755912713218,-400.0,0.00015068,2]
[380953985,1755912713228,-470.91,0.00015068,2]
[380953986,1755912713238,-418.5,0.00015068,2]
[380953987,1755912713248,-400.0,0.00015068,2]
[380953988,1755912713258,-400.0,0.00015068,2]
[380953989,1755912713268,-747.8,0.00015068,2]
[380953990,1755912713279,-400.0,0.00015068,2]
[380953991,1755912713289,-433.94,0.00015068,2]
[380953992,1755912713299,-400.0,0.00015068,2]
[380953993,1755912713308,-400.0,0.00015068,2]
[380953994,1755912713319,-400.0,0.00015068,2]
[380953995,1755912713328,-151.0,0.00015068,2]
[380953996,1755912713339,-400.0,0.00015068,2]
[380953997,1755912713349,-472.48,0.00015068,2]
[380953998,1755912713359,-1000.0,0.00015068,2]
[380953999,1755912713369,-156.290436,0.00015068,2]
[380954000,1755912713384,-400.0,0.00015068,2]
[380954001,1755912713393,-400.0,0.00015068,2]
[380954002,1755912713403,-855.010025,0.00015068,2]
[380954003,1755912713413,-400.0,0.00015068,2]
[380954004,1755912713422,-400.0,0.00015068,2]
[380954005,1755912713432,-517.1,0.00015068,2]
[380954006,1755912713442,-400.0,0.00015068,2]
[380954007,1755912713454,-631.75,0.00015068,2]
[380954008,1755912713464,-400.0,0.00015068,2]
[380954009,1755912713479,-400.0,0.00015068,2]
[380954010,1755912713489,-400.0,0.00015068,2]
[380954011,1755912713499,-400.0,0.00015068,2]
[380954012,1755912713508,-479.25,0.00015068,2]
[380954013,1755912713518,-737.35,0.00015068,2]
[380954014,1755912713528,-473.06,0.00015068,2]
[380954015,1755912713538,-400.0,0.00015068,2]
[380954016,1755912713548,-400.0,0.00015068,2]
[380954017,1755912713558,-464.53,0.00015068,2]
[380954018,1755912713568,-400.0,0.00015068,2]
[380954019,1755912713577,-400.0,0.00015068,2]
[380954020,1755912713587,-605.41,0.00015068,2]
[380954021,1755912713597,-451.38,0.00015068,2]
[380954022,1755912713606,-763.68,0.00015068,2]
[380954023,1755912713616,-400.0,0.00015068,2]
[380954024,1755912713626,-400.0,0.00015068,2]
[380954025,1755912713636,-400.0,0.00015068,2]
[380954026,1755912713646,-400.0,0.00015068,2]
[380954027,1755912713657,-400.0,0.00015068,2]
[380954028,1755912713667,-400.0,0.00015068,2]
[380954029,1755912713676,-437.52,0.00015068,2]
[380954030,1755912713686,-496.31,0.00015068,2]
[380954031,1755912713697,-1076.1,0.00015068,2]
[380954032,1755912713958,-400.0,0.00015068,2]
[380954033,1755912713969,-400.0,0.00015068,2]
[380954034,1755912713980,-400.0,0.00015068,2]
[380954035,1755912713989,-517.63,0.00015068,2]
[380954036,1755912713999,-400.0,0.00015068,2]
[380954037,1755912714009,-400.0,0.00015068,2]
[380954038,1755912714020,-531.82,0.00015068,2]
[380954039,1755912714030,-538.24,0.00015068,2]
[380954040,1755912714039,-400.0,0.00015068,2]
[380954041,1755912714049,-599.57,0.00015068,2]
[380954042,1755912714059,-400.0,0.00015068,2]
[380954043,1755912714068,-578.64,0.00015068,2]
[380954044,1755912714078,-400.0,0.00015068,2]
[380954045,1755912714088,-481.87,0.00015068,2]
[380954046,1755912714098,-876.45,0.00015068,2]
[380954047,1755912714108,-400.0,0.00015068,2]
[380954048,1755912714118,-596.46,0.00015068,2]
[380954049,1755912714128,-400.0,0.00015068,2]
[380954050,1755912714137,-750.69,0.00015068,2]
[380954051,1755912714147,-400.0,0.00015068,2]
[380954052,1755912714157,-483.91,0.00015068,2]
[380954053,1755912714166,-400.0,0.00015068,2]
[380954054,1755912714176,-429.94,0.00015068,2]
[380954055,1755912714185,-2560.03,0.00015068,2]
[380954056,1755912714195,-400.0,0.00015068,2]
[380954057,1755912714210,-400.0,0.00015068,2]
[380954058,1755912714219,-583.44,0.00015068,2]
[380954059,1755912714229,-511.98,0.00015068,2]
[380954060,1755912714239,-412.65,0.00015068,2]
[380954061,1755912714249,-400.0,0.00015068,2]
[380954062,1755912714259,-714.55,0.00015068,2]
[380954063,1755912714268,-466.47,0.00015068,2]
[380954064,1755912714278,-400.0,0.00015068,2]
[380954065,1755912714287,-789.4,0.00015068,2]
[380954066,1755912714297,-400.0,0.00015068,2]
[380954067,1755912714306,-483.0,0.00015068,2]
[380954068,1755912714316,-638.96,0.00015068,2]
[380954069,1755912714325,-626.45,0.00015068,2]
[380954070,1755912714335,-411.07,0.00015068,2]
[380954071,1755912714344,-400.0,0.00015068,2]
[380954072,1755912714354,-459.86,0.00015068,2]
[380954073,1755912714364,-590.56,0.00015068,2]
[380954074,1755912714375,-7170.55,0.00015068,2]
[380954075,1755912714387,-400.0,0.00015068,2]
[380954076,1755912714397,-400.0,0.00015068,2]
[380954077,1755912714407,-798.6,0.00015068,2]
[380954078,1755912714418,-489.74,0.00015068,2]
[380954079,1755912714427,-414.4,0.00015068,2]
[380954080,1755912714436,-755.36,0.00015068,2]
[380954081,1755912714445,-400.0,0.00015068,2]
[380954082,1755912714458,-400.0,0.00015068,2]
[380954083,1755912714468,-2114.53,0.00015068,2]
[380954084,1755912714478,-556.35,0.00015068,2]
[380954085,1755912714487,-400.0,0.00015068,2]
[380954086,1755912714497,-522.88,0.00015068,2]
[380954087,1755912714506,-400.0,0.00015068,2]
[380954088,1755912714516,-400.0,0.00015068,2]
[380954089,1755912714525,-400.0,0.00015068,2]
[380954090,1755912714535,-400.0,0.00015068,2]
[380954091,1755912714544,-2594.59,0.00015068,2]
[380954092,1755912714554,-400.0,0.00015068,2]
[380954093,1755912714563,-368.11,0.00015068,2]
[380954094,1755912714573,-446.5,0.00015068,2]
[380954095,1755912714582,-529.92,0.00015068,2]
[380954096,1755912714591,-705.67,0.00015068,2]
[380954097,1755912714600,-896.87,0.00015068,2]
[380954098,1755912714608,-1094.77,0.00015068,2]
[380954099,1755912714616,-400.0,0.00015068,2]
[380954100,1755912714624,-741.74,0.00015068,2]
[380954101,1755912714633,-400.0,0.00015068,2]
[380954102,1755912714642,-869.76,0.00015068,2]
[380954103,1755912714652,-418.69,0.00015068,2]
[380954104,1755912714662,-400.0,0.00015068,2]
[380954105,1755912714671,-400.0,0.00015068,2]
[380954106,1755912714681,-437.77,0.00015068,2]
[380954107,1755912714690,-562.13,0.00015068,2]
[380954108,1755912714701,-1048.91,0.00015068,2]
[380954109,1755912714711,-541.27,0.00015068,2]
[380954110,1755912714720,-723.99,0.00015068,2]
[380954111,1755912714730,-400.0,0.00015068,2]
[380954112,1755912714740,-400.0,0.00015068,2]
[380954113,1755912714749,-530.85,0.00015068,2]
[380954114,1755912714759,-614.11,0.00015068,2]
[380954115,1755912714768,-4903.23,0.00015068,2]
[380954116,1755912714778,-400.0,0.00015068,2]
[380954117,1755912714787,-963.36,0.00015068,2]
[380954118,1755912714797,-685.08,0.00015068,2]
[380954119,1755912714806,-400.0,0.00015068,2]
[380954120,1755912714815,-508.77,0.00015068,2]
[380954121,1755912714825,-956.53,0.00015068,2]
[380954122,1755912714834,-400.0,0.00015068,2]
[380954123,1755912714843,-400.0,0.00015068,2]
[380954124,1755912714853,-690.94,0.00015068,2]
[380954125,1755912714862,-400.0,0.00015068,2]
[380954126,1755912714871,-781.78,0.00015068,2]
[380954127,1755912714881,-516.0,0.00015068,2]
[380954128,1755912714890,-400.0,0.00015068,2]
[380954129,1755912714900,-407.82,0.00015068,2]
[380954130,1755912714909,-400.0,0.00015068,2]
[380954131,1755912714919,-573.49,0.00015068,2]
[380954132,1755912714928,-2566.25,0.00015068,2]
[380954133,1755912714938,-400.0,0.00015068,2]
[380954134,1755912714947,-400.0,0.00015068,2]
[380954135,1755912714958,-400.0,0.00015068,2]
[380954136,1755912714968,-400.0,0.00015068,2]
[380954137,1755912714977,-548.91,0.00015068,2]
[380954138,1755912714987,-468.96,0.00015068,2]
[380954139,1755912714996,-1155.0,0.00015068,2]
[380954140,1755912715006,-947.84,0.00015068,2]
[380954141,1755912715016,-400.0,0.00015068,2]
[380954142,1755912715026,-659.68,0.00015068,2]
[380954143,1755912715035,-1053.52,0.00015068,2]
[380954144,1755912715045,-691.7,0.00015068,2]
[380954145,1755912715054,-719.87,0.00015068,2]
[380954146,1755912715064,-557.81,0.00015068,2]
[380954147,1755912715074,-1327.17,0.00015068,2]
[380954148,1755912715084,-621.05,0.00015068,2]
[380954149,1755912715094,-400.0,0.00015068,2]
[380954150,1755912715106,-532.88,0.00015068,2]
[380954151,1755912715117,-400.0,0.00015068,2]
[380954152,1755912715127,-811.77,0.00015068,2]
[380954153,1755912715137,-482.24,0.00015068,2]
[380954154,1755912715147,-448.05,0.00015068,2]
[380954155,1755912715156,-786.36,0.00015068,2]
[380954156,1755912715166,-825.64,0.00015068,2]
[380954157,1755912715175,-400.0,0.00015068,2]
[380954158,1755912715184,-508.4,0.00015068,2]
[380954159,1755912715194,-400.0,0.00015068,2]
[380954160,1755912715205,-400.0,0.00015068,2]
[380954161,1755912715215,-193.76,0.00015068,2]
[380954162,1755912715224,-1160.25,0.00015068,2]
[380954163,1755912715234,-471.12,0.00015068,2]
[380954164,1755912715244,-522.09,0.00015068,2]
[380954165,1755912715253,-478.08,0.00015068,2]
[380954166,1755912715263,-400.0,0.00015068,2]
[380954167,1755912715272,-400.0,0.00015068,2]
[380954168,1755912715282,-1658.24,0.00015068,2]
[380954169,1755912715291,-413.45,0.00015068,2]
[380954170,1755912715300,-876.0,0.00015068,2]
[380954171,1755912715310,-400.01,0.00015068,2]
[380954172,1755912715319,-928.99,0.00015068,2]
[380954173,1755912715328,-535.34,0.00015068,2]
[380954174,1755912715338,-1082.57,0.00015068,2]
[380954175,1755912715347,-400.0,0.00015068,2]
[380954176,1755912715357,-599.68,0.00015068,2]
[380954177,1755912715366,-581.91,0.00015068,2]
[380954178,1755912715378,-576.13,0.00015068,2]
[380954179,1755912715388,-808.82,0.00015068,2]
[380954180,1755912715398,-704.93,0.00015068,2]
[380954181,1755912715407,-677.9,0.00015068,2]
[380954182,1755912715417,-629.77,0.00015068,2]
[380954183,1755912715426,-458.74,0.00015068,2]
[380954184,1755912715436,-1628.12,0.00015068,2]
[380954185,1755912715445,-909.17,0.00015068,2]
[380954186,1755912715455,-757.81,0.00015068,2]
[380954187,1755912715465,-400.0,0.00015068,2]
[380954188,1755912715474,-412.49,0.00015068,2]
[380954189,1755912715483,-400.0,0.00015068,2]
[380954190,1755912715492,-562.56,0.00015068,2]
[380954191,1755912715502,-400.0,0.00015068,2]
[380954192,1755912715511,-556.37,0.00015068,2]
[380954193,1755912715520,-901.46,0.00015068,2]
[380954194,1755912715530,-699.23,0.00015068,2]
[380954195,1755912715539,-554.4,0.00015068,2]
[380954196,1755912715548,-442.39,0.00015068,2]
[380954197,1755912715558,-627.55,0.00015068,2]
[380954198,1755912715568,-400.0,0.00015068,2]
[380954199,1755912715577,-475.41,0.00015068,2]
[380954200,1755912715586,-493.66,0.00015068,2]
[380954201,1755912715596,-400.0,0.00015068,2]
[380954202,1755912715605,-618.33,0.00015068,2]
[380954203,1755912715614,-400.0,0.00015068,2]
[380954204,1755912715623,-400.0,0.00015068,2]
[380954205,1755912715632,-400.0,0.00015068,2]
[380954206,1755912715642,-1043.76,0.00015068,2]
[380954207,1755912715651,-400.0,0.00015068,2]
[380954208,1755912715661,-400.0,0.00015068,2]
[380954209,1755912715670,-415.82,0.00015068,2]
[380954210,1755912715679,-491.94,0.00015068,2]
[380954211,1755912715689,-682.29,0.00015068,2]
[380954212,1755912715698,-400.0,0.00015068,2]
[380954213,1755912715708,-427.73,0.00015068,2]
[380954214,1755912715718,-501.87,0.00015068,2]
[380954215,1755912715727,-537.21,0.00015068,2]
[380954216,1755912715736,-468.97,0.00015068,2]
[380954217,1755912715746,-640.17,0.00015068,2]
[380954218,1755912715755,-577.38,0.00015068,2]
[380954219,1755912715764,-568.93,0.00015068,2]
[380954220,1755912715774,-264.2,0.00015068,2]
[380954221,1755912715784,-198.16,0.00015068,2]
[380954222,1755912715793,-620.18,0.00015068,2]
[380954223,1755912715802,-1005.26,0.00015068,2]
[380954224,1755912715812,-457.02,0.00015068,2]
[380954225,1755912715822,-400.0,0.00015068,2]
[380954226,1755912715831,-933.58,0.00015068,2]
[380954227,1755912715840,-773.99,0.00015068,2]
[380954228,1755912715849,-400.0,0.00015068,2]
[380954229,1755912715859,-400.0,0.00015068,2]
[380954230,1755912715869,-400.0,0.00015068,2]
[380954231,1755912715879,-400.0,0.00015068,2]
[380954232,1755912715888,-400.0,0.00015068,2]
[380954233,1755912715897,-610.39,0.00015068,2]
[380954234,1755912715907,-400.0,0.00015068,2]
[380954235,1755912715916,-407.11,0.00015068,2]
[380954236,1755912715925,-646.19,0.00015068,2]
[380954237,1755912715934,-605.05,0.00015068,2]
[380954238,1755912715943,-431.04,0.00015068,2]
[380954239,1755912715954,-400.0,0.00015068,2]
[380954240,1755912715963,-400.0,0.00015068,2]
[380954241,1755912715973,-938.83,0.00015068,2]
[380954242,1755912715982,-400.0,0.00015068,2]
[380954243,1755912715992,-490.42,0.00015068,2]
[380954244,1755912716001,-664.71,0.00015068,2]
[380954245,1755912716015,-546.05,0.00015068,2]
[380954246,1755912716025,-1070.54,0.00015068,2]
[380954247,1755912716034,-410.97,0.00015068,2]
[380954248,1755912716044,-570.73,0.00015068,2]
[380954249,1755912716053,-665.32,0.00015068,2]
[380954250,1755912716064,-716.24,0.00015068,2]
[380954251,1755912716073,-400.0,0.00015068,2]
[380954252,1755912716083,-400.0,0.00015068,2]
[380954253,1755912716092,-697.95,0.00015068,2]
[380954254,1755912716102,-731.6,0.00015068,2]
[380954255,1755912716111,-400.0,0.00015068,2]
[380954256,1755912716121,-509.97,0.00015068,2]
[380954257,1755912716131,-1401.51,0.00015068,2]
[380954258,1755912716140,-400.0,0.00015068,2]
[380954259,1755912716150,-474.27,0.00015068,2]
[380954260,1755912716160,-1143.48,0.00015068,2]
[380954261,1755912716170,-400.0,0.00015068,2]
[380954262,1755912716180,-633.21,0.00015068,2]
[380954263,1755912716189,-551.73,0.00015068,2]
[380954264,1755912716198,-1150.35,0.00015068,2]
[380954265,1755912716209,-400.0,0.00015068,2]
[380954266,1755912716221,-803.81,0.00015068,2]